[Event "Early-Titled-Tuesday-Blitz-March-05-2024"]
[Site "Chess.com"]
[Date "2024.03.05"]
[Round "2"]
[White "Sebastian"]
[Black "carlocapau"]
[Result "0-1"]
[WhiteElo "2909"]
[BlackElo "2441"]
[TimeControl "180+1"]
[EndTime "8:18:59 PST"]
[Termination "carlocapau won by checkmate"]

1. e4 {[%clk 0:03:00.9]} 1... c5 {[%clk 0:02:59.8]} 2. Nf3 {[%clk 0:03:00.4]}
2... Nc6 {[%clk 0:02:59.4]} 3. d4 {[%clk 0:03:00.5]} 3... cxd4 {[%clk
0:02:59.5]} 4. Nxd4 {[%clk 0:03:01.4]} 4... e5 {[%clk 0:02:59.6]} 5. Nb5 {[%clk
0:03:01.1]} 5... d6 {[%clk 0:02:59.8]} 6. c4 {[%clk 0:03:00]} 6... Be6 {[%clk
0:02:59.5]} 7. N1c3 {[%clk 0:02:57]} 7... a6 {[%clk 0:02:59.3]} 8. Na3 {[%clk
0:02:57]} 8... g6 {[%clk 0:02:58.4]} 9. Nc2 {[%clk 0:02:55.9]} 9... Bg7 {[%clk
0:02:58.2]} 10. Be3 {[%clk 0:02:55]} 10... Nf6 {[%clk 0:02:58.1]} 11. f3 {[%clk
0:02:54.5]} 11... O-O {[%clk 0:02:57.4]} 12. Qd2 {[%clk 0:02:54.4]} 12... Rc8
{[%clk 0:02:56]} 13. Be2 {[%clk 0:02:51.3]} 13... Ne7 {[%clk 0:02:48.4]} 14. b3
{[%clk 0:02:50.5]} 14... b5 {[%clk 0:02:44.4]} 15. Nd5 {[%clk 0:02:33.8]} 15...
Nfxd5 {[%clk 0:02:34.8]} 16. cxd5 {[%clk 0:02:33]} 16... Bd7 {[%clk 0:02:34.4]}
17. O-O {[%clk 0:02:26.3]} 17... f5 {[%clk 0:02:32.9]} 18. a4 {[%clk 0:02:20.4]}
18... Qc7 {[%clk 0:02:13.8]} 19. Rfc1 {[%clk 0:02:10]} 19... Qc3 {[%clk
0:02:13.1]} 20. axb5 {[%clk 0:02:04.1]} 20... axb5 {[%clk 0:02:11.7]} 21. Ra7
{[%clk 0:01:34.6]} 21... Rfd8 {[%clk 0:01:28.5]} 22. Qxc3 {[%clk 0:01:29.8]}
22... Rxc3 {[%clk 0:01:28.2]} 23. Bb6 {[%clk 0:01:25.4]} 23... Rdc8 {[%clk
0:01:27.9]} 24. Bd1 {[%clk 0:01:10.2]} 24... Bh6 {[%clk 0:01:13.3]} 25. Rb1
{[%clk 0:01:08]} 25... fxe4 {[%clk 0:01:00.8]} 26. Rxd7 {[%clk 0:00:55.1]} 26...
Nxd5 {[%clk 0:01:00.2]} 27. Ba5 {[%clk 0:00:53.5]} 27... Rxc2 {[%clk 0:00:56]}
28. Bxc2 {[%clk 0:00:53.3]} 28... Rxc2 {[%clk 0:00:56.8]} 29. Rxd6 {[%clk
0:00:46.2]} 29... Nf4 {[%clk 0:00:52.4]} 30. fxe4 {[%clk 0:00:34.1]} 30... Rxg2+
{[%clk 0:00:52.2]} 31. Kh1 {[%clk 0:00:34.3]} 31... Re2 {[%clk 0:00:52.4]} 32.
Rd7 {[%clk 0:00:32.1]} 32... Rxe4 {[%clk 0:00:41.2]} 33. Rc1 {[%clk 0:00:29.7]}
33... Ne6 {[%clk 0:00:41.3]} 34. Rc8+ {[%clk 0:00:27.7]} 34... Bf8 {[%clk
0:00:40.7]} 35. Bb6 {[%clk 0:00:25.5]} 35... Nf4 {[%clk 0:00:35.5]} 36. h4
{[%clk 0:00:21.3]} 36... Ne6 {[%clk 0:00:30.3]} 37. Bf2 {[%clk 0:00:20.4]} 37...
Rf4 {[%clk 0:00:29.4]} 38. Kg2 {[%clk 0:00:20.3]} 38... e4 {[%clk 0:00:28.5]}
39. Re8 {[%clk 0:00:18.4]} 39... Rf6 {[%clk 0:00:27.2]} 40. Bg3 {[%clk 0:00:16]}
40... e3 {[%clk 0:00:25.2]} 41. Rd3 {[%clk 0:00:12.7]} 41... Kf7 {[%clk
0:00:22.8]} 42. Rb8 {[%clk 0:00:12.4]} 42... Bc5 {[%clk 0:00:21.7]} 43. Rb7+
{[%clk 0:00:12.3]} 43... Kg8 {[%clk 0:00:20.4]} 44. b4 {[%clk 0:00:12.7]} 44...
Bd4 {[%clk 0:00:20.4]} 45. Ra3 {[%clk 0:00:11.5]} 45... Rf8 {[%clk 0:00:19.6]}
46. Ra6 {[%clk 0:00:10.4]} 46... Re8 {[%clk 0:00:19]} 47. Kf3 {[%clk 0:00:08.5]}
47... e2 {[%clk 0:00:17.5]} 48. Be1 {[%clk 0:00:06.6]} 48... Bg7 {[%clk
0:00:13]} 49. Rd6 {[%clk 0:00:05.8]} 49... Nd4+ {[%clk 0:00:13.1]} 50. Kg2
{[%clk 0:00:06]} 50... Rf8 {[%clk 0:00:12.6]} 51. Rdd7 {[%clk 0:00:05.8]} 51...
Be5 {[%clk 0:00:12.1]} 52. Re7 {[%clk 0:00:05]} 52... Nf3 {[%clk 0:00:11.9]} 53.
Bf2 {[%clk 0:00:03.4]} 53... e1=Q {[%clk 0:00:11.8]} 54. Bxe1 {[%clk 0:00:03.6]}
54... Nxe1+ {[%clk 0:00:12.7]} 55. Kh3 {[%clk 0:00:03.3]} 55... Rf3+ {[%clk
0:00:12.1]} 56. Kg4 {[%clk 0:00:03.6]} 56... Rg3# {[%clk 0:00:12.5]} 0-1

[Event "Early-Titled-Tuesday-Blitz-March-05-2024"]
[Site "Chess.com"]
[Date "2024.03.05"]
[Round "2"]
[White "HATilay"]
[Black "esrosenberg"]
[Result "0-1"]
[WhiteElo "2685"]
[BlackElo "2445"]
[TimeControl "180+1"]
[EndTime "8:19:00 PST"]
[Termination "esrosenberg won by resignation"]

1. e4 {[%clk 0:03:00.9]} 1... e6 {[%clk 0:02:59.8]} 2. d4 {[%clk 0:03:00.8]}
2... d5 {[%clk 0:03:00.5]} 3. e5 {[%clk 0:03:01.3]} 3... c5 {[%clk 0:03:00.6]}
4. c3 {[%clk 0:03:01.8]} 4... Nc6 {[%clk 0:03:01.3]} 5. Nf3 {[%clk 0:03:02]}
5... Bd7 {[%clk 0:03:02.1]} 6. a3 {[%clk 0:03:02.2]} 6... c4 {[%clk 0:03:01.6]}
7. Nbd2 {[%clk 0:03:02]} 7... Na5 {[%clk 0:02:59.7]} 8. Qc2 {[%clk 0:03:01.1]}
8... Qb6 {[%clk 0:02:55.4]} 9. Rb1 {[%clk 0:02:59.9]} 9... Nb3 {[%clk
0:02:46.8]} 10. Nxb3 {[%clk 0:02:59.3]} 10... cxb3 {[%clk 0:02:47]} 11. Qd3
{[%clk 0:02:56.1]} 11... a6 {[%clk 0:02:45.6]} 12. Qe3 {[%clk 0:02:53]} 12...
Ne7 {[%clk 0:02:44.1]} 13. Bd3 {[%clk 0:02:51.4]} 13... Bb5 {[%clk 0:02:42.9]}
14. O-O {[%clk 0:02:50.3]} 14... Nf5 {[%clk 0:02:27]} 15. Qe2 {[%clk 0:02:49.6]}
15... Be7 {[%clk 0:02:23.6]} 16. Ne1 {[%clk 0:02:49]} 16... O-O {[%clk
0:02:21.3]} 17. Bxb5 {[%clk 0:02:47.2]} 17... Qxb5 {[%clk 0:02:19.1]} 18. Nd3
{[%clk 0:02:47.8]} 18... a5 {[%clk 0:02:10.4]} 19. g4 {[%clk 0:02:47.6]} 19...
Nh4 {[%clk 0:02:09.1]} 20. f4 {[%clk 0:02:48.2]} 20... a4 {[%clk 0:02:05.2]} 21.
f5 {[%clk 0:02:45]} 21... f6 {[%clk 0:01:47.9]} 22. exf6 {[%clk 0:02:09.1]}
22... Bxf6 {[%clk 0:01:37.5]} 23. g5 {[%clk 0:02:08]} 23... Be7 {[%clk
0:01:10.3]} 24. Qxe6+ {[%clk 0:02:02.8]} 24... Kh8 {[%clk 0:01:10.2]} 25. Ne5
{[%clk 0:01:55.4]} 25... Qe8 {[%clk 0:00:43.2]} 26. f6 {[%clk 0:01:25.7]} 26...
Bc5 {[%clk 0:00:22.8]} 27. fxg7+ {[%clk 0:00:42.8]} 27... Kxg7 {[%clk
0:00:22.6]} 28. Qh6+ {[%clk 0:00:38.8]} 28... Kg8 {[%clk 0:00:22.3]} 29. Rxf8+
{[%clk 0:00:33.2]} 29... Qxf8 {[%clk 0:00:19.3]} 30. Qe6+ {[%clk 0:00:28.7]}
30... Kg7 {[%clk 0:00:17]} 31. Qf6+ {[%clk 0:00:23.2]} 31... Qxf6 {[%clk
0:00:13.6]} 32. gxf6+ {[%clk 0:00:23.9]} 32... Kxf6 {[%clk 0:00:14.5]} 33. Nd7+
{[%clk 0:00:24.4]} 33... Ke7 {[%clk 0:00:14.6]} 34. Nxc5 {[%clk 0:00:25.2]}
34... Rg8+ {[%clk 0:00:14.6]} 35. Kf2 {[%clk 0:00:25.4]} 35... Rg2+ {[%clk
0:00:14.1]} 36. Kf1 {[%clk 0:00:25.1]} 36... Rxh2 {[%clk 0:00:12.7]} 37. Bg5+
{[%clk 0:00:23.7]} 37... Kf7 {[%clk 0:00:10.7]} 38. Bxh4 {[%clk 0:00:24.3]}
38... Rh1+ {[%clk 0:00:10.1]} 39. Ke2 {[%clk 0:00:24.8]} 39... Rxb1 {[%clk
0:00:10.9]} 40. Nxa4 {[%clk 0:00:24.9]} 40... b5 {[%clk 0:00:10.9]} 41. Nc5
{[%clk 0:00:21.2]} 41... Rxb2+ {[%clk 0:00:11.5]} 42. Kd3 {[%clk 0:00:21.7]}
42... Rh2 {[%clk 0:00:12.1]} 43. Nxb3 {[%clk 0:00:19.9]} 43... Rxh4 {[%clk
0:00:11.5]} 44. Nc5 {[%clk 0:00:19.4]} 44... Rh1 {[%clk 0:00:09.6]} 45. a4
{[%clk 0:00:19.3]} 45... bxa4 {[%clk 0:00:08.9]} 46. Nxa4 {[%clk 0:00:20.2]}
46... h5 {[%clk 0:00:08.7]} 47. Ke3 {[%clk 0:00:20.1]} 47... Rf1 {[%clk
0:00:06.6]} 48. Ke2 {[%clk 0:00:16]} 48... Rf5 {[%clk 0:00:05.9]} 49. Nc5 {[%clk
0:00:16.6]} 49... h4 {[%clk 0:00:05.6]} 50. Nd3 {[%clk 0:00:17.3]} 50... h3
{[%clk 0:00:05.9]} 51. Nf2 {[%clk 0:00:18.1]} 51... h2 {[%clk 0:00:05.5]} 52.
Nh1 {[%clk 0:00:18.8]} 52... Rg5 {[%clk 0:00:04.4]} 53. Kf2 {[%clk 0:00:16.2]}
53... Rg1 {[%clk 0:00:04.9]} 54. Ng3 {[%clk 0:00:16.3]} 54... Rxg3 {[%clk
0:00:05.2]} 55. Kxg3 {[%clk 0:00:15.8]} 55... h1=Q {[%clk 0:00:06.1]} 0-1

[Event "Early-Titled-Tuesday-Blitz-March-05-2024"]
[Site "Chess.com"]
[Date "2024.03.05"]
[Round "2"]
[White "JohnWhite1952"]
[Black "KoningKobe"]
[Result "0-1"]
[WhiteElo "1971"]
[BlackElo "2435"]
[TimeControl "180+1"]
[EndTime "8:19:01 PST"]
[Termination "KoningKobe won by checkmate"]

1. e4 {[%clk 0:02:58.5]} 1... g6 {[%clk 0:02:59.2]} 2. d4 {[%clk 0:02:57.4]}
2... Bg7 {[%clk 0:02:59.3]} 3. Nf3 {[%clk 0:02:56.9]} 3... d6 {[%clk 0:02:59.3]}
4. Nc3 {[%clk 0:02:56.3]} 4... a6 {[%clk 0:02:58.4]} 5. a4 {[%clk 0:02:53.9]}
5... Nd7 {[%clk 0:02:56.2]} 6. Be2 {[%clk 0:02:52.8]} 6... Ngf6 {[%clk
0:02:50.8]} 7. O-O {[%clk 0:02:51.5]} 7... O-O {[%clk 0:02:50.6]} 8. Re1 {[%clk
0:02:50.3]} 8... e5 {[%clk 0:02:50.4]} 9. Bc4 {[%clk 0:02:47.2]} 9... exd4
{[%clk 0:02:48.6]} 10. Nxd4 {[%clk 0:02:46.4]} 10... Re8 {[%clk 0:02:47.6]} 11.
Bg5 {[%clk 0:02:43.9]} 11... h6 {[%clk 0:02:45.9]} 12. Bh4 {[%clk 0:02:41.7]}
12... g5 {[%clk 0:02:46.4]} 13. Bg3 {[%clk 0:02:41]} 13... Nc5 {[%clk
0:02:40.5]} 14. Bd3 {[%clk 0:02:23.5]} 14... Nxd3 {[%clk 0:02:28.9]} 15. Qxd3
{[%clk 0:02:21.3]} 15... Nh5 {[%clk 0:02:12.6]} 16. Nd5 {[%clk 0:02:15.5]} 16...
Nxg3 {[%clk 0:02:10.2]} 17. hxg3 {[%clk 0:02:14.3]} 17... c6 {[%clk 0:02:07.8]}
18. Ne3 {[%clk 0:02:09.9]} 18... Qf6 {[%clk 0:01:37.3]} 19. c3 {[%clk
0:01:59.8]} 19... Rd8 {[%clk 0:00:57.7]} 20. Ndf5 {[%clk 0:01:57.1]} 20... Bf8
{[%clk 0:00:56.1]} 21. Rad1 {[%clk 0:01:36.9]} 21... b5 {[%clk 0:00:48.4]} 22.
axb5 {[%clk 0:01:33.6]} 22... axb5 {[%clk 0:00:49.3]} 23. Ra1 {[%clk 0:01:23.8]}
23... Be6 {[%clk 0:00:31.5]} 24. g4 {[%clk 0:01:03.3]} 24... Qe5 {[%clk
0:00:23.2]} 25. g3 {[%clk 0:00:56.2]} 25... Rxa1 {[%clk 0:00:17.2]} 26. Rxa1
{[%clk 0:00:55.1]} 26... d5 {[%clk 0:00:17.9]} 27. exd5 {[%clk 0:00:48.7]} 27...
Bxd5 {[%clk 0:00:18.8]} 28. Nxd5 {[%clk 0:00:41.3]} 28... Rxd5 {[%clk
0:00:19.7]} 29. Qc2 {[%clk 0:00:38]} 29... Rd8 {[%clk 0:00:14]} 30. Kg2 {[%clk
0:00:35.2]} 30... c5 {[%clk 0:00:12.8]} 31. Rh1 {[%clk 0:00:32.4]} 31... Qe6
{[%clk 0:00:08.1]} 32. Ra1 {[%clk 0:00:18.9]} 32... b4 {[%clk 0:00:07.9]} 33.
cxb4 {[%clk 0:00:18.2]} 33... cxb4 {[%clk 0:00:08.8]} 34. Ra4 {[%clk 0:00:16]}
34... b3 {[%clk 0:00:09]} 35. Qc3 {[%clk 0:00:15.6]} 35... Rd1 {[%clk
0:00:06.8]} 36. Rd4 {[%clk 0:00:14.2]} 36... Rxd4 {[%clk 0:00:03.9]} 37. Qxd4
{[%clk 0:00:15.1]} 37... Qc6+ {[%clk 0:00:02.7]} 38. Kh2 {[%clk 0:00:14.3]}
38... Qc2 {[%clk 0:00:02.9]} 39. Qb6 {[%clk 0:00:12.7]} 39... Qxb2 {[%clk
0:00:02.1]} 40. Nxh6+ {[%clk 0:00:12.7]} 40... Bxh6 {[%clk 0:00:02.4]} 41. Qxh6
{[%clk 0:00:12.3]} 41... Qh8 {[%clk 0:00:02.8]} 42. Qxh8+ {[%clk 0:00:11.9]}
42... Kxh8 {[%clk 0:00:03.7]} 43. f4 {[%clk 0:00:10.7]} 43... b2 {[%clk
0:00:04.6]} 44. Kg2 {[%clk 0:00:09.9]} 44... b1=Q {[%clk 0:00:05.1]} 45. fxg5
{[%clk 0:00:09.3]} 45... Qc2+ {[%clk 0:00:04.4]} 46. Kh3 {[%clk 0:00:09.2]}
46... Kg7 {[%clk 0:00:05.3]} 47. Kh4 {[%clk 0:00:09.2]} 47... Qh2# {[%clk
0:00:04.5]} 0-1

[Event "Early-Titled-Tuesday-Blitz-March-05-2024"]
[Site "Chess.com"]
[Date "2024.03.05"]
[Round "2"]
[White "SashaKuzhilniy"]
[Black "vi_pranav"]
[Result "0-1"]
[WhiteElo "2631"]
[BlackElo "3078"]
[TimeControl "180+1"]
[EndTime "8:19:02 PST"]
[Termination "vi_pranav won on time"]

1. d4 {[%clk 0:03:00.9]} 1... Nf6 {[%clk 0:02:58]} 2. Bg5 {[%clk 0:03:00.5]}
2... Ne4 {[%clk 0:02:55.5]} 3. h4 {[%clk 0:03:00.4]} 3... c5 {[%clk 0:02:53.3]}
4. d5 {[%clk 0:03:00.1]} 4... g6 {[%clk 0:02:51.8]} 5. Nd2 {[%clk 0:02:57.8]}
5... Nxg5 {[%clk 0:02:50.9]} 6. hxg5 {[%clk 0:02:57.2]} 6... Bg7 {[%clk
0:02:51.6]} 7. c3 {[%clk 0:02:57.4]} 7... d6 {[%clk 0:02:50.8]} 8. Ngf3 {[%clk
0:02:54.2]} 8... a6 {[%clk 0:02:49.2]} 9. a4 {[%clk 0:02:49.4]} 9... Nd7 {[%clk
0:02:47.6]} 10. e4 {[%clk 0:02:48.8]} 10... Rb8 {[%clk 0:02:47.3]} 11. a5 {[%clk
0:02:44.5]} 11... h6 {[%clk 0:02:44.6]} 12. gxh6 {[%clk 0:02:33.5]} 12... Bxh6
{[%clk 0:02:43.6]} 13. Rh2 {[%clk 0:02:20.7]} 13... Ne5 {[%clk 0:02:40.1]} 14.
Nxe5 {[%clk 0:01:52.5]} 14... Bxd2+ {[%clk 0:02:28.2]} 15. Qxd2 {[%clk
0:01:53.4]} 15... Rxh2 {[%clk 0:02:24.2]} 16. Nxf7 {[%clk 0:01:53.6]} 16... Qd7
{[%clk 0:02:21.6]} 17. Qf4 {[%clk 0:01:50.4]} 17... Rh1 {[%clk 0:01:55.9]} 18.
Ng5 {[%clk 0:01:47.4]} 18... Qb5 {[%clk 0:01:09]} 19. Qf7+ {[%clk 0:01:14.4]}
19... Kd8 {[%clk 0:01:06.2]} 20. Qf8+ {[%clk 0:01:02.2]} 20... Kd7 {[%clk
0:00:45.7]} 21. O-O-O {[%clk 0:01:00]} 21... Rxf1 {[%clk 0:00:44]} 22. Ne6
{[%clk 0:00:59]} 22... Rxd1+ {[%clk 0:00:43.5]} 23. Kxd1 {[%clk 0:00:59.6]}
23... Qxa5 {[%clk 0:00:43.7]} 24. b4 {[%clk 0:00:44.6]} 24... cxb4 {[%clk
0:00:42.7]} 25. cxb4 {[%clk 0:00:45]} 25... Qb6 {[%clk 0:00:33.5]} 26. f4 {[%clk
0:00:19.2]} 26... a5 {[%clk 0:00:24.3]} 27. b5 {[%clk 0:00:14.8]} 27... a4
{[%clk 0:00:21.5]} 28. Ng7 {[%clk 0:00:07.7]} 28... Qd8 {[%clk 0:00:16.4]} 29.
Qf7 {[%clk 0:00:05.7]} 29... Kc7 {[%clk 0:00:16.4]} 30. Qxg6 {[%clk 0:00:04]}
30... Bd7 {[%clk 0:00:15.3]} 31. e5 {[%clk 0:00:03.7]} 31... a3 {[%clk
0:00:13.4]} 32. Qc2+ {[%clk 0:00:03.5]} 32... Kb6 {[%clk 0:00:13.1]} 33. Qf2+
{[%clk 0:00:04]} 33... Kxb5 {[%clk 0:00:13.3]} 34. Qe2+ {[%clk 0:00:03.6]} 34...
Ka5 {[%clk 0:00:13.6]} 35. Qd2+ {[%clk 0:00:03.4]} 35... Kb5 {[%clk 0:00:06.9]}
36. Qd3+ {[%clk 0:00:03.4]} 36... Kb6 {[%clk 0:00:06.6]} 37. Qxa3 {[%clk
0:00:02.3]} 37... Ra8 {[%clk 0:00:05.2]} 38. Qe3+ {[%clk 0:00:02.3]} 38... Kc7
{[%clk 0:00:04.4]} 39. e6 {[%clk 0:00:02.9]} 39... Ba4+ {[%clk 0:00:03.4]} 40.
Ke1 {[%clk 0:00:02]} 40... Kb8 {[%clk 0:00:04.3]} 41. Nf5 {[%clk 0:00:01.3]}
41... Ra5 {[%clk 0:00:04.5]} 42. Nd4 {[%clk 0:00:01.8]} 42... Rxd5 {[%clk
0:00:03.6]} 0-1

[Event "Early-Titled-Tuesday-Blitz-March-05-2024"]
[Site "Chess.com"]
[Date "2024.03.05"]
[Round "2"]
[White "almaguerjm"]
[Black "Andrey_Klymchuk"]
[Result "1/2-1/2"]
[WhiteElo "2466"]
[BlackElo "2703"]
[TimeControl "180+1"]
[EndTime "8:19:02 PST"]
[Termination "Game drawn by repetition"]

1. e4 {[%clk 0:03:00.9]} 1... c5 {[%clk 0:02:59.6]} 2. Nf3 {[%clk 0:02:58.8]}
2... Nc6 {[%clk 0:02:59.2]} 3. d3 {[%clk 0:02:46.2]} 3... d6 {[%clk 0:02:58.1]}
4. g3 {[%clk 0:02:44.9]} 4... g6 {[%clk 0:02:57.7]} 5. Bg2 {[%clk 0:02:45.3]}
5... Bg7 {[%clk 0:02:57.9]} 6. O-O {[%clk 0:02:45.4]} 6... Nf6 {[%clk
0:02:58.1]} 7. a4 {[%clk 0:02:45.7]} 7... O-O {[%clk 0:02:57.7]} 8. Nbd2 {[%clk
0:02:46.2]} 8... Rb8 {[%clk 0:02:57.3]} 9. Re1 {[%clk 0:02:42.5]} 9... Qc7
{[%clk 0:02:52.4]} 10. Nc4 {[%clk 0:02:41]} 10... Bg4 {[%clk 0:02:49.3]} 11. h3
{[%clk 0:02:37.9]} 11... Bxf3 {[%clk 0:02:49.3]} 12. Qxf3 {[%clk 0:02:37.9]}
12... Nd7 {[%clk 0:02:46.2]} 13. c3 {[%clk 0:02:36]} 13... a6 {[%clk 0:02:44.9]}
14. a5 {[%clk 0:02:32.9]} 14... Nde5 {[%clk 0:02:43.2]} 15. Nxe5 {[%clk
0:02:32.7]} 15... dxe5 {[%clk 0:02:35.4]} 16. Be3 {[%clk 0:02:27.6]} 16... Nxa5
{[%clk 0:02:34.8]} 17. Qe2 {[%clk 0:01:58.6]} 17... Rfd8 {[%clk 0:02:30]} 18.
Qc2 {[%clk 0:01:54.8]} 18... b6 {[%clk 0:02:03.1]} 19. Bf1 {[%clk 0:01:43.7]}
19... Ra8 {[%clk 0:01:52.5]} 20. Qa4 {[%clk 0:01:21.6]} 20... Nb7 {[%clk
0:01:41.7]} 21. b4 {[%clk 0:01:18.5]} 21... b5 {[%clk 0:01:25.2]} 22. Qa3 {[%clk
0:01:00.1]} 22... cxb4 {[%clk 0:01:01.4]} 23. Qxb4 {[%clk 0:00:53.7]} 23... e6
{[%clk 0:00:51.7]} 24. Reb1 {[%clk 0:00:50.5]} 24... Bf8 {[%clk 0:00:51.5]} 25.
Qb2 {[%clk 0:00:49.2]} 25... Bc5 {[%clk 0:00:51.2]} 26. Bh6 {[%clk 0:00:46.8]}
26... Rd7 {[%clk 0:00:44.1]} 27. Kg2 {[%clk 0:00:42.8]} 27... Ra7 {[%clk
0:00:39]} 28. f4 {[%clk 0:00:40]} 28... Bd6 {[%clk 0:00:33]} 29. Qf2 {[%clk
0:00:35.2]} 29... Nc5 {[%clk 0:00:30]} 30. f5 {[%clk 0:00:31.6]} 30... exf5
{[%clk 0:00:30]} 31. exf5 {[%clk 0:00:31.8]} 31... e4 {[%clk 0:00:29.9]} 32.
fxg6 {[%clk 0:00:26.8]} 32... hxg6 {[%clk 0:00:28.8]} 33. d4 {[%clk 0:00:27.2]}
33... Nd3 {[%clk 0:00:28.8]} 34. Qf6 {[%clk 0:00:21.6]} 34... Bf8 {[%clk
0:00:27.8]} 35. Bxf8 {[%clk 0:00:20.7]} 35... Kxf8 {[%clk 0:00:28.7]} 36. Bxd3
{[%clk 0:00:20.5]} 36... Qxc3 {[%clk 0:00:23.4]} 37. Bxe4 {[%clk 0:00:17.1]}
37... Rxd4 {[%clk 0:00:21.8]} 38. Qh8+ {[%clk 0:00:08.1]} 38... Ke7 {[%clk
0:00:22.2]} 39. Qe5+ {[%clk 0:00:08.7]} 39... Kd7 {[%clk 0:00:20.5]} 40. Rd1
{[%clk 0:00:08.5]} 40... Rd2+ {[%clk 0:00:20.1]} 41. Rxd2+ {[%clk 0:00:08.3]}
41... Qxd2+ {[%clk 0:00:21]} 42. Kf3 {[%clk 0:00:08.8]} 42... Qd6 {[%clk
0:00:20.4]} 43. Qxd6+ {[%clk 0:00:07.4]} 43... Kxd6 {[%clk 0:00:21.3]} 44. Rd1+
{[%clk 0:00:07.8]} 44... Kc5 {[%clk 0:00:21.8]} 45. Rc1+ {[%clk 0:00:06.3]}
45... Kb4 {[%clk 0:00:21.5]} 46. Kf4 {[%clk 0:00:06.8]} 46... a5 {[%clk
0:00:21.6]} 47. Rb1+ {[%clk 0:00:06.6]} 47... Kc5 {[%clk 0:00:21.5]} 48. Rc1+
{[%clk 0:00:07.2]} 48... Kd4 {[%clk 0:00:21.8]} 49. Rd1+ {[%clk 0:00:07.6]}
49... Kc3 {[%clk 0:00:22.3]} 50. Rc1+ {[%clk 0:00:07.9]} 50... Kd2 {[%clk
0:00:22.8]} 51. Rc2+ {[%clk 0:00:07.9]} 51... Kd1 {[%clk 0:00:23.2]} 52. Ke3
{[%clk 0:00:08.3]} 52... b4 {[%clk 0:00:21.9]} 53. Rd2+ {[%clk 0:00:08.4]} 53...
Kc1 {[%clk 0:00:21.5]} 54. Rc2+ {[%clk 0:00:09]} 54... Kd1 {[%clk 0:00:21.8]}
55. Rd2+ {[%clk 0:00:09.6]} 55... Ke1 {[%clk 0:00:21]} 56. Rb2 {[%clk
0:00:05.7]} 56... Rd7 {[%clk 0:00:20.8]} 57. Bf3 {[%clk 0:00:04.7]} 57... Re7+
{[%clk 0:00:18.9]} 58. Be4 {[%clk 0:00:05.2]} 58... Rd7 {[%clk 0:00:18.9]} 59.
Bf3 {[%clk 0:00:04.8]} 59... Re7+ {[%clk 0:00:19.3]} 60. Be4 {[%clk 0:00:05.3]}
60... Rd7 {[%clk 0:00:18.9]} 1/2-1/2

[Event "Early-Titled-Tuesday-Blitz-March-05-2024"]
[Site "Chess.com"]
[Date "2024.03.05"]
[Round "2"]
[White "YurasovMat-2012"]
[Black "xamax2000"]
[Result "0-1"]
[WhiteElo "2608"]
[BlackElo "2951"]
[TimeControl "180+1"]
[EndTime "8:19:05 PST"]
[Termination "xamax2000 won by resignation"]

1. e4 {[%clk 0:03:00.9]} 1... e5 {[%clk 0:03:00.2]} 2. Nf3 {[%clk 0:02:59.8]}
2... Nc6 {[%clk 0:03:00.8]} 3. Bc4 {[%clk 0:02:59.1]} 3... Nf6 {[%clk
0:03:01.1]} 4. d3 {[%clk 0:02:57.5]} 4... Bc5 {[%clk 0:03:01.5]} 5. c3 {[%clk
0:02:55.4]} 5... d6 {[%clk 0:03:01.9]} 6. h3 {[%clk 0:02:54.5]} 6... a5 {[%clk
0:03:01.9]} 7. a4 {[%clk 0:02:51.4]} 7... O-O {[%clk 0:03:01.5]} 8. O-O {[%clk
0:02:51.1]} 8... Be6 {[%clk 0:03:00.8]} 9. Nbd2 {[%clk 0:02:47.9]} 9... h6
{[%clk 0:02:53.6]} 10. Re1 {[%clk 0:02:46.8]} 10... Ba7 {[%clk 0:02:50.5]} 11.
Bb5 {[%clk 0:02:33.7]} 11... Ne7 {[%clk 0:02:49.6]} 12. Nf1 {[%clk 0:02:29.1]}
12... c6 {[%clk 0:02:49]} 13. Bc4 {[%clk 0:02:29.3]} 13... Ng6 {[%clk
0:02:41.7]} 14. Ng3 {[%clk 0:02:27.3]} 14... d5 {[%clk 0:02:38.5]} 15. exd5
{[%clk 0:02:26.3]} 15... cxd5 {[%clk 0:02:39.4]} 16. Ba2 {[%clk 0:02:25.9]}
16... Qd6 {[%clk 0:02:39.3]} 17. Be3 {[%clk 0:02:18.9]} 17... Bxe3 {[%clk
0:02:35]} 18. Rxe3 {[%clk 0:02:18.5]} 18... Rfe8 {[%clk 0:02:35.6]} 19. Qd2
{[%clk 0:02:13.4]} 19... Bd7 {[%clk 0:02:33.6]} 20. Rae1 {[%clk 0:02:11.3]}
20... Bxa4 {[%clk 0:02:26.7]} 21. Qe2 {[%clk 0:01:58.1]} 21... Qd7 {[%clk
0:01:50.5]} 22. Qd2 {[%clk 0:01:28.9]} 22... Qc7 {[%clk 0:01:45.1]} 23. Bb1
{[%clk 0:01:04.2]} 23... Re6 {[%clk 0:01:41]} 24. Nf5 {[%clk 0:01:01.5]} 24...
Rae8 {[%clk 0:01:38.1]} 25. R3e2 {[%clk 0:00:57.7]} 25... Bd7 {[%clk 0:01:37.1]}
26. Ba2 {[%clk 0:00:27.2]} 26... Bc6 {[%clk 0:01:25]} 27. Rd1 {[%clk 0:00:14.5]}
27... b6 {[%clk 0:01:23.9]} 28. Ree1 {[%clk 0:00:13.9]} 28... Bb7 {[%clk
0:01:19.7]} 29. c4 {[%clk 0:00:14]} 29... Qd7 {[%clk 0:01:15.5]} 30. cxd5 {[%clk
0:00:11]} 30... Nxd5 {[%clk 0:01:12.7]} 31. d4 {[%clk 0:00:06.9]} 31... e4
{[%clk 0:01:12]} 32. Ne5 {[%clk 0:00:07]} 32... Nxe5 {[%clk 0:01:11.9]} 33. dxe5
{[%clk 0:00:07.2]} 33... Rxe5 {[%clk 0:01:12]} 34. Ne3 {[%clk 0:00:05.3]} 34...
Rd8 {[%clk 0:01:10.4]} 35. Qd4 {[%clk 0:00:03.6]} 35... Rg5 {[%clk 0:00:35.4]}
36. Nxd5 {[%clk 0:00:02.8]} 36... Bxd5 {[%clk 0:00:34]} 37. Qxb6 {[%clk
0:00:03.5]} 37... e3 {[%clk 0:00:23.9]} 38. Bxd5 {[%clk 0:00:03.3]} 38... exf2+
{[%clk 0:00:23.4]} 39. Qxf2 {[%clk 0:00:02.8]} 39... Rxd5 {[%clk 0:00:24]} 40.
Rxd5 {[%clk 0:00:02.7]} 40... Qxd5 {[%clk 0:00:24.9]} 41. Qg3 {[%clk 0:00:03.1]}
41... Qd4+ {[%clk 0:00:22.8]} 42. Kh2 {[%clk 0:00:03.3]} 42... Qxb2 {[%clk
0:00:21.6]} 43. Qc7 {[%clk 0:00:03.9]} 43... Qb8 {[%clk 0:00:21.7]} 44. Qxb8
{[%clk 0:00:02.9]} 44... Rxb8 {[%clk 0:00:22.6]} 45. Ra1 {[%clk 0:00:02.3]}
45... Ra8 {[%clk 0:00:23.1]} 46. Ra4 {[%clk 0:00:02.1]} 46... Kf8 {[%clk
0:00:23.2]} 47. Kg3 {[%clk 0:00:02.7]} 47... Ke7 {[%clk 0:00:23.8]} 48. Kf4
{[%clk 0:00:03.6]} 48... Kd6 {[%clk 0:00:24.4]} 49. Ke4 {[%clk 0:00:04.4]} 49...
Kc5 {[%clk 0:00:24.9]} 50. Kd3 {[%clk 0:00:05.3]} 50... Kb5 {[%clk 0:00:25.4]}
51. Ra1 {[%clk 0:00:06.1]} 51... a4 {[%clk 0:00:25.8]} 52. Kc3 {[%clk
0:00:06.6]} 52... a3 {[%clk 0:00:25.4]} 53. Rb1+ {[%clk 0:00:06]} 53... Kc5
{[%clk 0:00:25.3]} 54. Rc1 {[%clk 0:00:04.9]} 54... Kd5 {[%clk 0:00:25.2]} 55.
Rd1+ {[%clk 0:00:03.3]} 55... Ke4 {[%clk 0:00:25.2]} 56. Re1+ {[%clk 0:00:03.1]}
56... Kf4 {[%clk 0:00:25.6]} 57. Re7 {[%clk 0:00:01.5]} 57... a2 {[%clk
0:00:25.3]} 58. Rxf7+ {[%clk 0:00:02.4]} 58... Kg3 {[%clk 0:00:25.3]} 59. Rf1
{[%clk 0:00:03.3]} 59... a1=Q+ {[%clk 0:00:24.9]} 60. Rxa1 {[%clk 0:00:04.2]}
60... Rxa1 {[%clk 0:00:24.9]} 0-1